fUSD/lending_fUSD_20240404
["ID","MTS","AMOUNT","RATE_DAILY","PERIOD"]
[321477671,1712221846657,-153.62296114,0.00039305,7]
[321477672,1712221846666,-154.78369153,0.00039316,7]
[321477673,1712221846675,-150.0,0.00039322,2]
[321477674,1712221846685,-150.0,0.00039328,2]
[321477675,1712221846695,-300.0,0.00039335,2]
[321477676,1712221846705,-1500.0,0.00039346,2]
[321477677,1712221846714,-150.0,0.00039359,2]
[321477678,1712221846723,-1296.87887427,0.00039372,2]
[321477679,1712221846732,-300.0,0.00039375,2]
[321477680,1712221846742,-150.0,0.00039396,2]
[321477681,1712221846751,-150.0,0.00039408,2]
[321477682,1712221846760,-150.0,0.00039414,2]
[321477683,1712221846770,-155.3609739,0.00039417,7]
[321477684,1712221846780,-150.0,0.00039419,2]
[321477685,1712221846790,-1500.0,0.00039444,2]
[321477686,1712221846799,-150.0,0.00039449,2]
[321477687,1712221846808,-510.18312938,0.00039452,7]
[321477688,1712221846818,-150.0,0.00039464,2]
[321477689,1712221846827,-1500.0,0.00039474,2]
[321477690,1712221846836,-157.64312318,0.00039481,7]
[321477691,1712221846846,-433.19743561,0.0003949,2]
[321477692,1712221846856,-1500.0,0.00039511,2]
[321477693,1712221846865,-150.0,0.00039512,2]
[321477694,1712221846875,-150.0,0.00039513,2]
[321477695,1712221846885,-176.34670904,0.00039515,7]
[321477696,1712221846895,-152.63931104,0.00039517,7]
[321477697,1712221846904,-150.0,0.00039519,2]
[321477698,1712221846914,-1500.0,0.00039525,2]
[321477699,1712221846924,-716.94,0.00039542,2]
[321477700,1712221846934,-150.0,0.00039556,2]
[321477701,1712221846943,-150.0,0.0003957,2]
[321477702,1712221846952,-150.0,0.00039573,2]
[321477703,1712221846962,-1500.0,0.00039574,2]
[321477704,1712221846971,-150.0,0.00039585,2]
[321477705,1712221846981,-126611.84464152,0.0003959,2]
[321477706,1712221846991,-150.0,0.00039593,2]
[321477707,1712221847000,-150.0,0.00039593,2]
[321477708,1712221847010,-150.0,0.00039594,2]
[321477709,1712221847019,-1207.03,0.000396,7]
[321477710,1712221847030,-1169.61,0.000396,7]
[321477711,1712221847041,-1244.68,0.000396,7]
[321477712,1712221847050,-1000.12,0.000396,2]
[321477713,1712221847060,-316.6,0.000396,2]
[321477714,1712221847070,-800.0,0.000396,30]
[321477715,1712221847079,-2236.20408815,0.000396,4]
[321477716,1712221847089,-760.09348594,0.000396,30]
[321477717,1712221847098,-1500.0,0.0003961,2]
[321477718,1712221847108,-200.0,0.00039615,7]
[321477719,1712221847118,-150.0,0.00039619,2]
[321477720,1712221847128,-200.0,0.0003962,7]
[321477721,1712221847140,-421.87215133,0.00039623,2]
[321477722,1712221847151,-288.5292445,0.00039623,4]
[321477723,1712221847161,-155.16783997,0.00039623,4]
[321477724,1712221847171,-150.0,0.00039623,2]
[321477725,1712221847182,-300.0,0.00039624,2]
[321477726,1712221847192,-1000.0,0.00039624,30]
[321477727,1712221847203,-2000.0,0.00039627,30]
[321477728,1712221847213,-3000.0,0.00039627,30]
[321477729,1712221847225,-4010.74,0.00039627,30]
[321477730,1712221847235,-150.0,0.00039628,2]
[321477731,1712221847245,-200.0,0.0003963,7]
[321477732,1712221847255,-301.49597796,0.00039631,2]
[321477733,1712221847264,-154.06850799,0.00039632,7]
[321477734,1712221847274,-200.0,0.00039635,7]
[321477735,1712221847284,-150.0,0.00039639,2]
[321477736,1712221847295,-200.0,0.0003964,2]
[321477737,1712221847304,-2000.0,0.0003964,2]
[321477738,1712221847313,-151.4540563,0.0003964,2]
[321477739,1712221847323,-300.0,0.00039641,2]
[321477740,1712221847333,-2149.21048315,0.00039642,2]
[321477741,1712221847343,-150.0,0.00039644,2]
[321477742,1712221847354,-6570.73025335,0.00039645,4]
[321477743,1712221847365,-150.0,0.00039664,2]
[321477744,1712221847375,-156.17754036,0.00039677,7]
[321477745,1712221847384,-150.0,0.00039684,2]
[321477746,1712221847395,-1000.0,0.00039698,2]
[321477747,1712221847404,-300.0,0.00039713,2]
[321477748,1712221847415,-168.1718832,0.0003972,5]
[321477749,1712221847425,-300.0,0.00039733,2]
[321477750,1712221847437,-749.45222225,0.00039745,7]
[321477751,1712221847447,-150.0,0.0003977,2]
[321477752,1712221847457,-200.0,0.00039781,2]
[321477753,1712221847467,-300.0,0.00039794,2]
[321477754,1712221847479,-150.0,0.00039798,2]
[321477755,1712221847490,-749.45222225,0.00039865,7]
[321477756,1712221847500,-300.0,0.00039865,2]
[321477757,1712221847510,-4070.398132,0.00039878,7]
[321477758,1712221847520,-480.0,0.000399,26]
[321477759,1712221847530,-251.48,0.000399,24]
[321477760,1712221847540,-150.0,0.000399,24]
[321477761,1712221847550,-1635.43201,0.000399,31]
[321477762,1712221847559,-153.89032083,0.0003994,7]
[321477763,1712221847569,-200.0,0.00039968,7]
[321477764,1712221847579,-200.0,0.00039971,7]
[321477765,1712221847590,-200.0,0.00039971,7]
[321477766,1712221847601,-200.0,0.00039971,7]
[321477767,1712221847611,-200.0,0.00039971,7]
[321477768,1712221847621,-33243.7016375,0.00039973,2]
[321477769,1712221847632,-4034.7269947,0.00039973,2]
[321477770,1712221847642,-16527.6759666,0.00039973,2]
[321477771,1712221847653,-4885.64393719,0.00039978,3]
[321477772,1712221847665,-338.22684057,0.00039978,2]
[321477773,1712221847675,-181.55087807,0.00039978,7]
[321477774,1712221847686,-1573.76694246,0.00039978,2]
[321477775,1712221847697,-221.44361655,0.00039978,2]
[321477776,1712221847707,-375.89148616,0.00039978,2]
[321477777,1712221847717,-1476.89387508,0.00039978,2]
[321477778,1712221847727,-7161.26451337,0.00039978,2]
[321477779,1712221847737,-159.27807138,0.00039978,2]
[321477780,1712221847747,-175.50448261,0.00039978,2]
[321477781,1712221847757,-844.77078182,0.00039978,2]
[321477782,1712221847767,-185.42157352,0.00039978,2]
[321477783,1712221847777,-841.16506851,0.00039978,2]
[321477784,1712221847786,-478.50287853,0.00039978,2]
[321477785,1712221847797,-2487.32836811,0.00039978,10]
[321477786,1712221847807,-7208.22590073,0.00039978,2]
[321477787,1712221847818,-14352.74217207,0.00039978,3]
[321477788,1712221847828,-643.0,0.00039978,2]
[321477789,1712221847838,-4000.0,0.00039978,3]
[321477790,1712221847848,-942.58098493,0.00039978,2]
[321477791,1712221847858,-6028.92464891,0.00039978,7]
[321477792,1712221847867,-556.73973114,0.00039978,2]
[321477793,1712221847877,-4367.86738982,0.00039978,7]
[321477794,1712221847887,-169.64959884,0.00039978,2]
[321477795,1712221847902,-500.0,0.00039978,2]
[321477796,1712221847914,-550.0,0.00039978,2]
[321477797,1712221847926,-979.51871427,0.00039978,2]
[321477798,1712221847937,-500.0,0.00039978,2]
[321477799,1712221847947,-367556.50774207,0.00039978,20]
[321477800,1712221847967,-347025.53953856,0.00039978,20]
[321477801,1712221847979,-712.3,0.00039978,20]
[321477802,1712221848130,-2999.81983422,0.00039978,20]
[321477803,1712221848146,-9755.0699046,0.00039978,20]
[321477804,1712221848158,-1673.13988591,0.00039978,20]
[321477805,1712221848851,-0.02275781,0.00024999,2]
[321477806,1712221848946,-601.25733625,0.00024787,2]
[321477807,1712221848958,-644.36934154,0.00024999,2]
[321477808,1712221848967,-250.0,0.00029926,2]
[321477809,1712221848979,-207.76709851,0.00036999,2]
[321477810,1712221848991,-186.57290149,0.00036999,2]
[321477811,1712221849003,-394.34,0.00036999,2]
[321477812,1712221849013,-394.34,0.00036999,2]
[321477813,1712221849023,-394.34,0.00036999,2]
[321477814,1712221849034,-300.09801636,0.00036999,2]
[321477815,1712221849047,-94.24198364,0.00036999,2]
[321477816,1712221849057,-150.0,0.00037754,2]
[321477817,1712221849067,-150.0,0.00037772,2]
[321477818,1712221849077,-150.0,0.00037777,2]
[321477819,1712221849087,-150.0,0.00038,2]
[321477820,1712221849097,-150.0,0.00038039,2]
[321477821,1712221849107,-150.0,0.00038068,2]
[321477822,1712221849117,-150.0,0.00038319,2]
[321477823,1712221849127,-150.0,0.00038555,2]
[321477824,1712221849138,-150.0,0.00038721,2]
[321477825,1712221849149,-150.0,0.00038772,2]
[321477826,1712221849159,-150.0,0.00038998,2]
[321477827,1712221849172,-150.0,0.00039084,2]
[321477828,1712221849184,-150.0,0.00039102,2]
[321477829,1712221849194,-150.0,0.00039226,2]
[321477830,1712221849205,-150.0,0.00039506,2]
[321477831,1712221849215,-394.34,0.00039589,2]
[321477832,1712221849228,-394.34,0.00039589,2]
[321477833,1712221849240,-150.0,0.00039626,2]
[321477834,1712221849250,-33.27801636,0.00039669,2]
[321477836,1712221949503,25000.0,0.00039978,30]
[321477837,1712221964496,25000.0,0.00039978,30]
[321477845,1712222234368,25000.0,0.00039595,30]
[321477846,1712222411626,25000.0,0.00039614,30]
[321477847,1712222520368,25000.0,0.00039614,30]
[321477848,1712222829152,-583.17386604,0.0002449,2]
[321477849,1712222833848,25000.0,0.00039614,30]
[321477851,1712223031757,-343.32002072,0.0002459,3]
[321477852,1712223031769,-334.50747262,0.0002459,3]
[321477853,1712223031925,-12.0609091,0.0002459,3]
[321477854,1712223031935,-356.77522623,0.0002468,2]
[321477855,1712223031944,-727.47015449,0.00024689,2]
[321477856,1712223031955,-10113.77870104,0.0002469,2]
[321477857,1712223031966,-7048.9,0.0002469,2]
[321477877,1712223037716,-1630.19441551,0.0002469,2]
[321477878,1712223037728,-408.84160442,0.0002469,2]
[321477879,1712223037739,-1122.94407473,0.0002469,2]
[321477904,1712223038594,-664.51,0.0002469,2]
[321477905,1712223038606,-474.91,0.0002469,2]
[321477906,1712223038635,-32869.12344102,0.0002469,2]
[321477907,1712223038647,-15803.67247974,0.0002469,2]
[321477908,1712223038658,-5840.86948354,0.0002469,2]
[321477909,1712223038668,-500.0,0.00024998,2]
[321477910,1712223038677,-155.0,0.00025,2]
[321477911,1712223038686,-1333.0,0.000288,2]
[321477912,1712223038695,-560.73809275,0.00029,2]
[321477913,1712223038704,-1327.406,0.00029277,2]
[321477914,1712223038714,-441.09329125,0.000295,3]
[321477915,1712223038723,-2640.21942399,0.0002999,2]
[321477916,1712223038732,-348.38136544,0.0003,4]
[321477917,1712223038742,-3206.28076084,0.0003,2]
[321477918,1712223038751,-155.0,0.0003,2]
[321477919,1712223038762,-12692.54350788,0.0003,4]
[321477920,1712223038773,-6539.17947604,0.0003,4]
[321477921,1712223038819,-62.39778779,0.0003,4]
[321477922,1712223038828,-200.0,0.0003,7]
[321477923,1712223038837,-331.73521384,0.00032,4]
[321477924,1712223038846,-156.25,0.00032877,2]
[321477925,1712223038856,-156.25,0.00032877,2]
[321477926,1712223038865,-441.54,0.00033675,2]
[321477927,1712223038874,-9055.59018033,0.000348,4]
[321477928,1712223038884,-175.75681804,0.00034973,2]
[321477929,1712223038936,-340.73318196,0.00034973,2]
[321477930,1712223038945,-1281.5331215,0.00035,4]
[321477931,1712223038954,-1840.91197731,0.00035005,2]
[321477932,1712223038965,-2758.33802269,0.00035005,2]
[321477933,1712223038974,-250.0,0.00035042,112]
[321477934,1712223038983,-250.0,0.00035055,2]
[321477935,1712223038993,-153.89032083,0.00035123,7]
[321477936,1712223039002,-190.16931259,0.0003518,7]
[321477937,1712223039011,-151.29625457,0.00035186,7]
[321477938,1712223039021,-454.02,0.00035231,2]
[321477939,1712223039030,-162.4,0.00035239,2]
[321477940,1712223039039,-152.2891949,0.00035294,7]
[321477941,1712223039049,-163.98,0.00035299,2]
[321477942,1712223039058,-220.27616632,0.00035301,7]
[321477943,1712223039068,-325.39996252,0.00035326,7]
[321477944,1712223039077,-861.54,0.00035343,2]
[321477945,1712223039087,-150.0,0.00035347,2]
[321477946,1712223039096,-183.35,0.00035409,2]
[321477947,1712223039105,-182.41,0.00035451,2]
[321477948,1712223039114,-153.62296114,0.00035453,7]
[321477949,1712223039123,-21.331659,0.00035479,7]
[321477983,1712223039772,-198.94450732,0.00035479,7]
[321477984,1712223039782,-250.0,0.00035502,2]
[321477985,1712223039792,-213.83,0.00035507,2]
[321477986,1712223039801,-378.45440595,0.00035526,7]
[321477987,1712223039883,-53.75004585,0.00035526,7]
[321477988,1712223039892,-156.7,0.00035528,2]
[321477989,1712223039902,-166.24195415,0.00035596,120]
[321477990,1712223039993,-68.83804585,0.00035596,120]
[321477991,1712223040002,-255.96,0.00035596,2]
[321477992,1712223040012,-168.30338035,0.00035643,7]
[321477993,1712223040021,-6.39983937,0.00035693,2]
[321477994,1712223040066,-267.81225392,0.00035693,2]
[321478003,1712223042734,-236.03790671,0.00035693,2]
[321478004,1712223042746,-155.3609739,0.00035742,7]
[321478005,1712223042759,-325.39996252,0.00035843,7]
[321478006,1712223042771,-325.39996252,0.00035899,7]
[321478007,1712223042783,-152.2891949,0.00035923,7]
[321478008,1712223042795,-1000.0,0.00035935,2]
[321478009,1712223042806,-441.54,0.00035939,2]
[321478010,1712223042818,-2064.51246302,0.00035974,4]
[321478011,1712223042830,-432.2044518,0.00035982,7]
[321478012,1712223042842,-325.39996252,0.00036007,7]
[321478013,1712223042854,-190.16931259,0.0003605,7]
[321478014,1712223042866,-167.62,0.00036082,2]
[321478015,1712223042877,-161.95,0.00036098,2]
[321478016,1712223042889,-156.17754036,0.00036148,7]
[321478017,1712223042901,-325.39996252,0.00036182,7]
[321478018,1712223042912,-432.2044518,0.00036222,7]
[321478019,1712223042923,-150.0,0.00036291,2]
[321478020,1712223042935,-325.39996252,0.000363,7]
[321478021,1712223042946,-220.27616632,0.00036312,7]
[321478022,1712223042957,-153.89032083,0.0003632,7]
[321478023,1712223042969,-164.0473269,0.00036395,7]
[321478024,1712223042980,-196.90680062,0.00036398,7]
[321478025,1712223042992,-159.10975516,0.00036447,7]
[321478026,1712223043004,-151.29625457,0.00036478,7]
[321478027,1712223043015,-152.2891949,0.00036506,7]
[321478028,1712223043027,-165.29,0.00036539,2]
[321478029,1712223043039,-160.20412195,0.00036642,7]
[321478030,1712223043051,-586.61582342,0.00036765,7]
[321478031,1712223043062,-152.2891949,0.00036772,7]
[321478032,1712223043073,-195.12,0.00036788,2]
[321478033,1712223043085,-152.2891949,0.0003681,7]
[321478034,1712223043097,-586.61582342,0.00036858,7]
[321478035,1712223043109,-325.39996252,0.0003686,7]
[321478036,1712223043121,-196.90680062,0.00036861,7]
[321478037,1712223043132,-153.89032083,0.00036889,7]
[321478038,1712223043144,-432.2044518,0.000369,7]
[321478039,1712223043155,-586.61582342,0.00037028,7]
[321478040,1712223043167,-154.06850799,0.00037032,7]
[321478041,1712223043179,-155.3609739,0.00037092,7]
[321478043,1712223043191,-150.0,0.00037236,2]
[321478045,1712223043202,-190.16931259,0.00037604,7]
[321478048,1712223043214,-190.16931259,0.00037678,7]
[321478050,1712223043226,-516.49,0.00037713,2]
[321478052,1712223043237,-586.61582342,0.0003785,7]
[321478054,1712223043250,-155.3609739,0.00037913,7]
[321478055,1712223043262,-708.74191465,0.00037998,15]
[321478056,1712223043274,-278.75407301,0.00037999,4]
[321478057,1712223043287,-1152.39,0.00038027,15]
[321478058,1712223043299,-190.16931259,0.00038061,7]
[321478059,1712223043311,-153.89032083,0.00038132,7]
[321478061,1712223043322,-153.62296114,0.00038146,7]
[321478064,1712223043334,-150.0,0.0003818,2]
[321478066,1712223043346,-441.54,0.00038203,2]
[321478068,1712223043358,-325.39996252,0.00038235,7]
[321478071,1712223043370,-157.64312319,0.00038242,7]
[321478073,1712223043382,-1997.0,0.00038356,2]
[321478075,1712223043394,-586.61582342,0.00038375,7]
[321478077,1712223043407,-432.2044518,0.00038409,7]
[321478080,1712223043419,-902.48572204,0.00038434,2]
[321478082,1712223043431,-196.90680062,0.00038462,7]
[321478084,1712223043442,-432.2044518,0.00038483,7]
[321478086,1712223043456,-490.11815053,0.000385,4]
[321478088,1712223043467,-432.2044518,0.00038534,7]
[321478090,1712223043481,-180.0,0.00038561,2]
[321478091,1712223043495,-586.61582342,0.00038575,7]
[321478092,1712223043508,-220.27616632,0.00038669,7]
[321478093,1712223043520,-6161.4,0.00038678,2]
[321478094,1712223043532,-190.16931259,0.00038768,7]
[321478095,1712223043547,-152.2891949,0.00038772,7]
[321478096,1712223043560,-151.29625457,0.00038775,7]
[321478097,1712223043574,-1158.0,0.00038779,5]
[321478098,1712223043586,-4217.35401839,0.000388,2]
[321478099,1712223043599,-152.2891949,0.00038863,7]
[321478100,1712223043612,-4065.34553289,0.000389,15]
[321478101,1712223043624,-159.10975516,0.00038958,7]
[321478102,1712223043636,-153.89032083,0.00038963,7]
[321478103,1712223043649,-1876.61601221,0.0003899,3]
[321478104,1712223043662,-586.61582342,0.00039,7]
[321478105,1712223043674,-2000.0,0.00039,10]
[321478106,1712223043686,-10000.0,0.00039,2]
[321478107,1712223043699,-1211.0,0.00039,4]
[321478108,1712223043712,-155.3609739,0.00039051,7]
[321478109,1712223043723,-220.27616632,0.00039054,7]
[321478110,1712223043736,-220.27616632,0.000391,7]
[321478111,1712223043749,-150.0,0.00039124,2]
[321478112,1712223043761,-151.80598542,0.00039171,2]
[321478113,1712223043773,-586.61582342,0.00039175,7]
[321478114,1712223043786,-176.34670904,0.00039185,7]
[321478115,1712223043798,-190.16931259,0.00039222,7]
[321478116,1712223043809,-160.20412195,0.00039319,7]
[321478117,1712223043821,-155.3609739,0.00039378,7]
[321478118,1712223043833,-176.64,0.00039397,2]
[321478119,1712223043846,-221.49935442,0.0003942,5]
[321478120,1712223043859,-160.28413083,0.00039464,7]
[321478121,1712223043870,-196.90680062,0.00039492,7]
[321478122,1712223043881,-4992.0808,0.000395,2]
[321478123,1712223043894,-488.30234274,0.000395,2]
[321478124,1712223043911,-38993.76975726,0.000395,2]
[321478125,1712223043922,-160.79542795,0.00039501,9]
[321478126,1712223043935,-554.53127271,0.00039514,11]
[321478127,1712223043947,-151.29625457,0.00039526,7]
[321478128,1712223043959,-154.06850799,0.00039535,7]
[321478129,1712223043971,-267.41,0.0003959,2]
[321478130,1712223043985,-162844.0,0.000396,30]
[321478131,1712223043997,-1007.02,0.000396,2]
[321478132,1712223044009,-319.92,0.000396,2]
[321478133,1712223044022,-267.41,0.00039608,2]
[321478134,1712223044034,-267.41,0.00039608,2]
[321478135,1712223044046,-267.41,0.00039608,2]
[321478136,1712223044058,-267.41,0.00039608,2]
[321478137,1712223044069,-216.25147552,0.00039608,2]
[321478138,1712223044082,-155.0,0.00039614,2]
[321478139,1712223044094,-200.0,0.00039614,2]
[321478140,1712223044107,-1600.45488383,0.00039614,5]
[321478141,1712223044119,-366.26637804,0.00039614,4]
[321478142,1712223044131,-169.01,0.00039617,2]
[321478143,1712223044142,-169.01,0.00039617,2]
[321478144,1712223044153,-169.01,0.00039617,2]
[321478145,1712223044165,-169.01,0.00039617,2]
[321478146,1712223044177,-169.01,0.00039617,2]
[321478147,1712223044188,-166243.72396686,0.00039618,20]
[321478148,1712223044238,-13514.12988855,0.00039618,20]
[321478149,1712223044426,-5996.25219771,0.00039618,20]
[321478150,1712223044440,-20620.55258732,0.00039618,20]
[321478151,1712223044466,-7173.25380548,0.00039618,20]
[321478152,1712223044505,-5072.75,0.00039618,20]
[321478155,1712223046058,-10737.021767,0.00039618,20]
[321478156,1712223046085,-3320.00000003,0.00039618,20]
[321478157,1712223046122,-631.7952,0.00039618,20]
[321478158,1712223046146,-150.0,0.00039599,2]
[321478159,1712223046155,-2000.83016414,0.00039618,20]
[321478160,1712223046167,-33523.68684364,0.00039618,20]
[321478164,1712223222117,25000.0,0.00039615,30]
[321478166,1712223288679,25000.0,0.00039615,30]
[321478167,1712223333513,25000.0,0.00039615,30]
[321478169,1712223337021,750.0,0.00023,3]
[321478172,1712223662471,25000.0,0.00039613,30]
[321478173,1712223730692,-150.0,0.00023135,2]
[321478177,1712224079836,25000.0,0.00039613,30]
[321478178,1712224108267,25000.0,0.00039613,30]
[321478179,1712224125342,25000.0,0.00039613,30]
[321478180,1712224190904,25000.0,0.00039613,30]
[321478223,1712224237902,-524.78067754,0.00023016,2]
[321478224,1712224237912,-312.4020961,0.00023017,2]
[321478225,1712224237921,-180.0937107,0.00023026,2]
[321478226,1712224237930,-300.0,0.00023353,2]
[321478227,1712224237942,-956.9847195,0.00023456,2]
[321478228,1712224237951,-161.39569259,0.00024687,2]
[321478229,1712224237960,-808.53957742,0.00024688,2]
[321478230,1712224237969,-155.0,0.00024688,2]
[321478231,1712224237979,-909.75,0.00024688,2]
[321478232,1712224237988,-156.72002016,0.00024688,2]
[321478233,1712224237998,-3072.4557778,0.00024688,2]
[321478234,1712224238007,-8956.3847157,0.00024688,2]
[321478235,1712224238017,-911.04668929,0.00024688,2]
[321478236,1712224238047,-327.01032315,0.00024688,2]
[321478237,1712224238057,-161.09720308,0.00024689,2]
[321478276,1712224240012,-19.47100721,0.00024689,2]
[321478278,1712224240022,-980.52899279,0.00024689,2]
[321478289,1712224240126,-363.03873917,0.00024689,2]
[321478291,1712224240138,-941.98226804,0.00024689,2]
[321478293,1712224240147,-2043.09954581,0.0002469,2]
[321478298,1712224240187,-464.90567364,0.0002469,2]
[321478306,1712224240250,-3651.1689,0.0002469,2]
[321478308,1712224240262,-2521.4239591,0.0002469,2]
[321478311,1712224240274,-4128.63986883,0.0002469,2]
[321478313,1712224240286,-1995.43240196,0.0002469,2]
[321478315,1712224240295,-800.0,0.00025,3]
[321478317,1712224240305,-1137.93223748,0.00025,2]
[321478319,1712224240317,-1463.08734411,0.00025,2]
[321478321,1712224240327,-155.0,0.00025,2]
[321478323,1712224240336,-499.99,0.00025,2]
[321478325,1712224240345,-2314.19104615,0.00025,2]
[321478327,1712224240357,-6757.96750055,0.00025,2]
[321478329,1712224240368,-26017.90615313,0.00025,2]
[321478332,1712224240379,-1177.292,0.00025,2]
[321478334,1712224240390,-1363.68834929,0.00025,2]
[321478336,1712224240401,-455.64,0.00025,2]
[321478338,1712224240412,-1034.2132305,0.00025,2]
[321478340,1712224240423,-1667.14999999,0.00025,2]
[321478342,1712224240434,-399.63800004,0.00025,2]
[321478345,1712224240446,-495.56476405,0.00025,2]
[321478536,1712224243054,-5068.45124733,0.00025,2]
[321478537,1712224243075,-15767.83946444,0.00025,2]
[321478538,1712224243086,-850.0,0.00027,3]
[321478539,1712224243095,-160.3,0.00028011,2]
[321478540,1712224243105,-1568.1526,0.000286,2]
[321478541,1712224243115,-1560.0,0.000287,2]
[321478542,1712224243126,-160.50076302,0.00029,2]
[321478543,1712224243136,-900.0,0.00029,3]
[321478544,1712224243147,-3206.28076084,0.0003,2]
[321478545,1712224243159,-155.0,0.0003,2]
[321478546,1712224243168,-200.0,0.0003,7]
[321478547,1712224243179,-950.0,0.00031,3]
[321478548,1712224243190,-331.73521384,0.00032,4]
[321478549,1712224243202,-156.25,0.00032877,2]
[321478550,1712224243212,-1000.0,0.00033,3]
[321478551,1712224243221,-229.35,0.00033989,2]
[321478552,1712224243231,-150.0,0.00034012,2]
[321478553,1712224243242,-622.87,0.00034118,2]
[321478554,1712224243251,-1579.04,0.00034272,2]
[321478555,1712224243261,-1000.0,0.00034272,2]
[321478556,1712224243270,-250.0,0.00034333,2]
[321478557,1712224243279,-250.0,0.00034495,112]
[321478558,1712224243289,-159.4,0.00034625,2]
[321478559,1712224243299,-183.35,0.00034631,2]
[321478560,1712224243309,-4990.35,0.00034848,60]
[321478561,1712224243318,-150.0,0.00034921,2]
[321478562,1712224243328,-156.34,0.00034992,2]
[321478563,1712224243341,-1281.5331215,0.00035,4]
[321478564,1712224243351,-1050.0,0.00035,3]
[321478565,1712224243360,-250.0,0.00035,15]
[321478566,1712224243369,-250.0,0.00035,5]
[321478567,1712224243378,-172.62263864,0.00035114,7]
[321478568,1712224243387,-172.62263864,0.00035166,7]
[321478569,1712224243397,-151.29625457,0.00035225,7]
[321478570,1712224243407,-181.17189182,0.00035333,7]
[321478571,1712224243418,-265.05469207,0.00035427,7]
[321478572,1712224243427,-158.93421436,0.00035435,7]
[321478573,1712224243436,-156.34,0.00035448,2]
[321478574,1712224243446,-154.29714744,0.0003545,7]
[321478575,1712224243457,-191.71183903,0.00035643,7]
[321478576,1712224243467,-195.12,0.00035644,2]
[321478578,1712224243477,-441.09329125,0.00035655,7]
[321478580,1712224243486,-172.62263864,0.00035683,7]
[321478582,1712224243496,-504.21999139,0.00035801,7]
[321478584,1712224243505,-150.0,0.00035829,2]
[321478586,1712224243514,-153.86698454,0.00035851,7]
[321478588,1712224243524,-156.34,0.00035904,2]
[321478590,1712224243533,-482.7,0.00036056,2]
[321478592,1712224243542,-191.71183903,0.00036069,7]
[321478594,1712224243551,-158.93421436,0.00036138,7]
[321478596,1712224243560,-155.23056862,0.00036143,7]
[321478598,1712224243569,-362.48598445,0.00036184,7]
[321478600,1712224243579,-155.23056862,0.00036203,7]
[321478602,1712224243589,-153.86698454,0.00036265,7]
[321478604,1712224243598,-156.0849663,0.00036295,7]
[321478606,1712224243607,-265.05469207,0.00036305,7]
[321478608,1712224243616,-156.34,0.0003636,2]
[321478610,1712224243625,-265.05469207,0.00036386,7]
[321478612,1712224243634,-164.17924986,0.00036388,7]
[321478614,1712224243643,-153.31224415,0.00036442,7]
[321478616,1712224243653,-156.0849663,0.00036467,7]
[321478618,1712224243662,-167.46,0.00036557,2]
[321478620,1712224243671,-265.05469207,0.00036725,7]
[321478622,1712224243680,-150.0,0.00036738,2]
[321478624,1712224243689,-362.48598445,0.00036772,7]
[321478626,1712224243698,-181.17189182,0.00036794,7]
[321478628,1712224243707,-156.34,0.00036816,2]
[321478630,1712224243716,-622.87,0.00036858,2]
[321478632,1712224243726,-504.21999139,0.00036943,7]
[321478634,1712224243735,-181.17189182,0.00036946,7]
[321478636,1712224243744,-1100.0,0.00037,3]
[321478638,1712224243753,-150.0,0.00037005,2]
[321478640,1712224243763,-191.71183903,0.00037015,7]
[321478642,1712224243772,-504.21999139,0.00037026,7]
[321478644,1712224243781,-153.8747005,0.00037087,7]
[321478646,1712224243790,-150.0,0.00037104,2]
[321478647,1712224243798,-150.0,0.00037109,2]
[321478648,1712224243807,-504.21999139,0.00037124,7]
[321478649,1712224243816,-153.8747005,0.00037164,7]